Cogmind - Beta 13 @@@ ROGUE MODE // 2024.08.05 @ 16:41:17 Player: YBOUZL Result: Destroyed by as-27257 with Assembled Heavy Rifle Performance ------------- Evolutions (0) 0 Regions Visited (2) 400 Robots Destroyed (12) 60 Value Destroyed (290) 290 Prototype IDs (0) 0 Alien Tech Used (0) 0 Bonus (0) 0 TOTAL SCORE: 750 Bonus ------- None Cogmind --------- Core Integrity 0/250 Matter 300/300 Energy 125/125 System Corruption 2% Temperature Cool (0) Movement Walking (190) Ox1 Location -10/Mines Parts ------- > --- POWER (1) -------- Light Ion Engine > --- PROPULSION (2) --- Aluminum Leg Aluminum Leg > --- UTILITY (2) ------ Large Storage Unit > --- WEAPON (2) ------- Light Assault Rifle > --- INVENTORY (15) --- Small Storage Unit ECM Suite Peak State ------------ > --- POWER ------------ Ion Engine > --- PROPULSION ------- Aluminum Leg Aluminum Leg > --- UTILITY ---------- Small Storage Unit Long-range Tractor Beam > --- WEAPON ----------- Ion Cannon Light Assault Rifle > --- INVENTORY -------- Ion Engine Light Ion Engine Aluminum Leg Aluminum Leg Improved Heat Sink Large Storage Unit ECM Suite Light Assault Rifle [Rating: 12] Favorites ----------- Power Ion Engine Engine Ion Engine Propulsion Aluminum Leg Leg Aluminum Leg Utility Small Storage Unit Device Long-range Tractor Beam Storage Small Storage Unit Protection Backup Plating I Weapon Light Assault Rifle Energy Gun Medium Laser Energy Cannon Ion Cannon Ballistic Gun Light Assault Rifle Build | -11 -10 -10 ------- Run | Yrd Mat Min Slots Evolved . | . . . Power . | . . . Propulsion . | . . . Utility . | . . . Weapon . | . . . Parts Attached 22 | 7 5 10 Power 3 | 1 . 2 Engine 3 | 1 . 2 Core . | . . . Reactor . | . . . Propulsion 5 | 2 1 2 Treads . | . . . Leg 5 | 2 1 2 Wheel . | . . . Hover . | . . . Flight . | . . . Utility 8 | 2 3 3 Device 4 | . 2 2 Storage 3 | 2 . 1 Processor . | . . . Hackware . | . . . Protection 1 | . 1 . Artifact . | . . . Weapon 6 | 2 1 3 Energy Gun 1 | 1 . . Energy Cannon 1 | . . 1 Ballistic Gun 4 | 1 1 2 Ballistic Cannon . | . . . Launcher . | . . . Special Weapon . | . . . Impact Weapon . | . . . Slashing Weapon . | . . . Piercing Weapon . | . . . Special Melee Weapon . | . . . Unidentified Prototypes . | . . . Parts Lost 11 | . 3 8 Power 2 | . . 2 Propulsion 3 | . 1 2 Utility 3 | . 1 2 Weapon 3 | . 1 2 Highest Loss Streak 8 | . 2 8 To Critical Strikes . | . . . Average Slot Usage (%) 98 | . 98 98 Engine 14 | . 14 14 Leg 27 | . 27 27 Device 6 | . 6 6 Storage 14 | . 14 14 Protection 6 | . 6 7 Energy Gun 4 | . 10 . Energy Cannon 3 | . . 6 Ballistic Gun 19 | . 17 21 Naked Turns . | . . . Heaviest Build 33 | 13 15 33 Greatest Support 20 | 20 20 20 Greatest Overweight (x) 1 | . . 1 Average Overweight (x) . | . . . Largest Inventory Capacity 15 | 8 8 15 Average Capacity 8 | 5 8 10 Most Carried 8 | 5 6 8 Average Carried 5 | 3 4 6 Final Capacity 15 | 8 8 15 Final Carried 5 | 2 5 2 Class Distribution -------------------- 100% | Mutant Dominant Class ---------------- Mutant | -10/Materials Mutant | -10/Mines Resources | -11 -10 -10 ----------- Run | Yrd Mat Min Matter Collected 475 | 154 224 97 Remotely 146 | . 94 52 Salvage Created 346 | . 305 41 Parts 22 | . 13 9 Haulers Intercepted . | . . . Recyclers Shooed 1 | . 1 . Parts Field Recycled . | . . . Retrieved Matter . | . . . Parts Self-Destructed . | . . . Prevented . | . . . Kills | -11 -10 -10 ------- Run | Yrd Mat Min Combat Hostiles Destroyed 13 | . 9 4 Guns 12 | . 8 4 Classes Destroyed 3 | . 2 1 Swarmer 6 | . 3 3 Grunt 6 | . 6 . Assembled 1 | . . 1 Best Kill Streak 4 | . 4 3 Combat Bots Only 4 | . 4 3 Max Kills in Single Turn 2 | . 2 1 Gunslinging 1 | . 1 . Exploded . | . . . Melee . | . . . Uniques/NPCs Destroyed . | . . . Combat | -11 -10 -10 -------- Run | Yrd Mat Min Hostile Shots Fired 96 | . 57 39 Missed 25 | . 18 7 Damage Taken 1327 | . 480 847 Core 259 | . 62 197 Absorbed by Shields . | . . . Core Remaining (%) 100 | 100 . . Volleys Fired 52 | . 41 11 Largest 2 | . 2 2 Hottest 80 | . 70 80 Shots Fired 100 | . 77 23 Gun 95 | . 77 18 Cannon 5 | . . 5 Launcher . | . . . Special . | . . . Kinetic 59 | . 41 18 Thermal 41 | . 36 5 Explosive . | . . . Electromagnetic . | . . . Robot Hit Streak 7 | . 7 5 Robot Miss Streak 5 | . 5 3 Penetration Max . | . . . Secondary Targets 1 | . 1 . Max Gunslinging Chain 1 | . 1 . Shots Hit Robots 61 | . 46 15 Core Hits 26 | . 19 7 Critical Kills . | . . . Critical Parts Destroyed . | . . . Critical Strikes 3 | . 3 . Burn 3 | . 3 . Melee Attacks . | . . . Impact . | . . . Slashing . | . . . Piercing . | . . . Sneak Attacks . | . . . Combat Hostiles . | . . . Follow-up Attacks . | . . . Damage Inflicted 649 | . 466 183 Guns 582 | . 466 116 Cannons 67 | . . 67 Explosions . | . . . Melee . | . . . Ramming . | . . . Kinetic 319 | . 203 116 Thermal 330 | . 263 67 Explosive . | . . . Electromagnetic . | . . . Impact . | . . . Slashing . | . . . Piercing . | . . . Highest Corruption 2 | . . 2 Average Corruption 2 | . . 2 Corruption Purged . | . . . Corruption Blocked . | . . . Effects 1 | . . 1 Misfires 1 | . . 1 Overload Shots . | . . . Overflow Damage . | . . . Projectiles . | . . . Explosions . | . . . Melee . | . . . Knockbacks . | . . . Impact . | . . . Kinetic . | . . . Secondary . | . . . Self-Inflicted Damage . | . . . Shots . | . . . Rammed . | . . . Targets Rammed . | . . . Kicked . | . . . Crushed . | . . . Highest Temperature 376 | . 376 82 Average Temperature 155 | . 183 22 Received Heat Transfer 263 | . 243 20 Effects 6 | . 6 . Shutdowns 1 | . 1 . Energy Bleed 1 | . 1 . Interference 3 | . 3 . Matter Decay 1 | . 1 . Siege Activations . | . . . Robots Corrupted . | . . . Combat Hostiles . | . . . Parts Fried . | . . . Impact Corruptions . | . . . Robots Melted 1 | . 1 . Combat Hostiles 1 | . 1 . Parts Melted . | . . . Heat Transferred 1110 | . 999 111 Parts Sabotaged . | . . . Parts Stolen . | . . . Parts Stripped . | . . . Power Chain Reactions . | . . . Alert | -11 -10 -10 ------- Run | Yrd Mat Min Peak Influence 196 | . 196 146 Initial 76 | . . 76 Average 105 | . 109 118 Maximum Alert Level . | . . . Low Security (%) 100 | 100 100 100 Level 1 . | . . . Level 2 . | . . . Level 3 . | . . . Level 4 . | . . . Level 5 . | . . . High Security . | . . . Max Security . | . . . Squads Dispatched 1 | . 1 . Investigation 1 | . 1 . Extermination . | . . . Reinforcement . | . . . Assault . | . . . Garrison . | . . . Intercept . | . . . Searches Triggered . | . . . Construction Impeded . | . . . Haulers Reinforced . | . . . Active Scanning Responses . | . . . Cargo Convoy Interrupts . | . . . Stealth | -11 -10 -10 --------- Run | Yrd Mat Min Distress Signals 1 | . 1 . Communications Jammed . | . . . Distress Signals . | . . . Times Spotted 34 | . 9 25 Peak Tracking Total 12 | . 4 12 Tactical Retreats . | . . . Traps | -11 -10 -10 ------- Run | Yrd Mat Min Traps Triggered 2 | . 1 1 Indirectly . | . . . Trap Hack Attempts . | . . . Triggered . | . . . Disarmed . | . . . Reprogrammed . | . . . Reused . | . . . Traps Extracted . | . . . Installed . | . . . Triggered . | . . . Machines | -11 -10 -10 ---------- Run | Yrd Mat Min Machines Disabled . | . . . Max in Single Turn . | . . . Machines Repaired . | . . . Machines Dismantled . | . . . Machines Sabotaged . | . . . Overloaded Fab Kills . | . . . Hacking | -11 -10 -10 --------- Run | Yrd Mat Min Machines Accessed 2 | . 1 1 Terminals . | . . . Fabricators . | . . . Repair Stations 1 | . 1 . Recycling Units . | . . . Scanalyzers . | . . . Garrison Access . | . . . Total Hacks 3 | . 2 1 Successful 2 | . 1 1 Failed 1 | . 1 . Catastrophic . | . . . Database Lockouts . | . . . Manual . | . . . Terminals . | . . . Fabricators . | . . . Repair Stations 2 | . 2 . Recycling Units . | . . . Scanalyzers . | . . . Garrison Access . | . . . Terminal Hacks 1 | . . 1 Open Door 1 | . . 1 Fabricator Hacks . | . . . Repair Station Hacks 1 | . 1 . Refit 1 | . 1 . Recycling Unit Hacks . | . . . Scanalyzer . | . . . Garrison Access Hacks . | . . . Unauthorized Hacks . | . . . Terminals . | . . . Fabricators . | . . . Repair Stations . | . . . Recycling Units . | . . . Scanalyzers . | . . . Garrison Access . | . . . Data Cores Recovered . | . . . Used . | . . . Hacking Detections . | . . . Full Trace Events . | . . . Feedback Events . | . . . Feedback Blocked . | . . . Robot Schematics Acquired . | . . . Robots Built . | . . . Authchips . | . . . Time . | . . . Total Robot Build Rating . | . . . Part Schematics Acquired . | . . . Parts Built . | . . . Authchips . | . . . Time . | . . . Total Part Build Rating . | . . . Parts Repaired . | . . . Time . | . . . Parts Recycled . | . . . Recycled Matter . | . . . Retrieved Matter . | . . . Retrieved Components . | . . . Parts Scanalyzed . | . . . Part Schematics Acquired . | . . . Parts Damaged . | . . . Bothacking | -11 -10 -10 ------------ Run | Yrd Mat Min Used RIF Installer . | . . . Robots Hacked . | . . . Non-combat . | . . . Combat . | . . . Robot Hacks Applied . | . . . Relay Couplers Released . | . . . Fabnet Peak Effective % . | . . . Robots Rewired . | . . . Allies Hacked . | . . . Hacks Repelled . | . . . Allies | -11 -10 -10 -------- Run | Yrd Mat Min Total Allies . | . . . Largest Group . | . . . Highest-Rated Group . | . . . Highest-Rated Ally . | . . . Total Orders . | . . . Ally Attacks . | . . . Total Damage . | . . . Kills . | . . . Allies Corrupted . | . . . Allies Melted . | . . . Intel | -11 -10 -10 ------- Run | Yrd Mat Min Robot Analysis Total . | . . . Derelict Logs Recovered 2 | . . 2 Drone Launches . | . . . Drone Recoveries . | . . . Exploration | -11 -10 -10 ------------- Run | Yrd Mat Min Turns Passed 606 | 48 244 314 Spaces Moved 308 | 34 95 179 Core 11 | 11 . . Treads . | . . . Legs 297 | 23 95 179 Wheels . | . . . Hover . | . . . Flight . | . . . Fastest Speed 50 | 50 120 120 Average Speed 126 | 97 120 136 Slowest Speed 190 | 120 120 190 Overloaded Moves . | . . . Propulsion Burnouts . | . . . Robots Hopped . | . . . Cave-ins Triggered . | . . . Exploration Rate (%) 21 | 3 15 46 Regions Visited 2 Branch Regions 1 Pre-discovered Areas 1 | . . 1 Known Exits Taken . | . . . Unknown Exits Taken 2 | 1 1 . Scrap Searched 1 | . . 1 Spaces Dug . | . . . Terrain Destroyed 1 | . . 1 Melee . | . . . Projectile 1 | . . 1 AOE . | . . . Terrain Rammed . | . . . Walls Destroyed . | . . . Machines Disabled . | . . . Actions | -11 -10 -10 --------- Run | Yrd Mat Min Total 437 | 49 157 231 Wait 31 | . 9 22 Move 306 | 33 94 179 Hop . | . . . Pick Up 20 | 8 6 6 Fast Attach . | . . . Attach 19 | 7 5 7 Detach 3 | 1 2 . Swap 3 | . . 3 Drop 3 | . . 3 Fire 52 | . 41 11 Melee . | . . . Ram . | . . . Kick . | . . . Crush . | . . . Escape Stasis . | . . . Rewire . | . . . Trap . | . . . Miscellaneous . | . . . Route ------- -11/Scrapyard -10/Materials (discovered 2 exits: [*Mat] / *Min) -10/Mines History --------- Turn | Location | Event 2 | -11/Scrapyard | Met Revision 17 8 | -11/Scrapyard | Discovered new exit (range 15) 49 | -11/Scrapyard | Entered Materials 167 | -10/Materials | Discovered new exit (range 16) 277 | -10/Materials | Discovered new exit (range 10) 293 | -10/Materials | Entered Mines 309 | -10/Mines | Build established: Mutant 447 | -10/Mines | Met a Derelict who couldn't figure out how to use a Trap Extractor 513 | -10/Mines | Learned Materials garrison access intel 548 | -10/Mines | Assembled infested the area 548 | -10/Mines | Learned location of Storage (-9) 553 | -10/Mines | Assisted by a Guerilla fighting off Assembled 571 | -10/Mines | Core integrity fell below 50% 591 | -10/Mines | Core integrity fell below 20% 607 | -10/Mines | Destroyed by as-27257 with Assembled Heavy Rifle Last Messages --------------- 00591_ U-05 Engineer lays Concrete. 00592_ The unstable cave ceiling collapses. 00592_ Wheel crushed. 00592_ U-05 Engineer builds a Wall. 00593_ The unstable cave ceiling collapses. 00594_ D-53 Grenadier destroyed. 00595_ U-05 Engineer lays Concrete. 00595_ Ion Cannon destroyed. 00596_ Imp. Heat Sink destroyed. 00596_ U-05 Engineer builds a Wall. 00598_ System corrupted: FCS attempts to trigger Lgt. Assault Rifle. 00598_ System corrupted: Lgt. Assault Rifle misfires. 00598_ The unstable cave ceiling collapses. 00601_ U-05 Engineer lays Concrete. 00601_ U-05 Engineer destroyed. 00602_ Acquired 15 matter. 00602_ U-05 Engineer builds a Wall. 00606_ Acquired 8 matter. Map ----- +----------------------------------------------------+ | | | | | | | | | | | | | ?????????????????????????????????????????????????? | | ?????????????????????????????????????????????????? | | ?????????????????????????????????????????????????? | | ?????????????????????????????????????????????????? | | ?????????????????????????????????????????????????? | | ?????????????????????????????????????????????????? | | ?????????????????????????????????????????????????? | | ?????????????????????????????????????????????????? | | ?????????????????????????????????????????????????? | | ?????????????????????????????????????????????????? | | ?????????????????????????????????????????????????? | | ??????????????????#####??????????????????????????? | | ?????????????????## ##?????????????????????????? | | ????????????????## ##????????????????????????? | | ??????????????### ##???????????????????????? | | ??????????????# #???????????????????????? | | ????????????### ##??????????????????????? | | ???????????## # ##?????????????????????? | | ???????????# #= # #???????????????????? | | ?????????# @ #???????????????????? | | ??? # # # ###????????????????? ? | | ??? a! # ##?????????????????? ?? | | ??? % aa! ###?????????????????? ??? | | ??? #u# #???????????????????? ???? | | ?????# # # ##??????????????????? #???? | | ??????# #### # ##########????????????? #???? | | ???????# #???#### #???????????## #???? | | ???????## ????????# ######## ######????## #?? | | ????????#?????????# #??????# #??## ## | | ?????????????????## ######?###### #??# = | | ??????????######## ## #??????# #??# | | ?????????##""## ##?????# #?## #???? | | ?????????#" ! #X ##????#!### #???? | | ?????????# ![ ##???# ! #???? | | ?????????#" ! ### ######## #???? | | ?????????#"!!!# ##?## # #???? | | ?????????# " # #???# #???? | | ?????????## ### ##??# #### ## #???? | | ???#########??# #??## #??# #?# #??? | | ???# #??## #???## ##??# #??# #?? | | ???# #?## ##????## #???# #??? #? | | ???# """ #?# ##??????####???# #???? #? | | ???# """ #?# #??????????????#####???? #? | | ???#="""= #?# ##???????????????????????? ! | +----------------------------------------------------+ Best States ------------- Heat Dissipation 39 Energy Generation 10 Energy Capacity 250 Matter Stores 300 Matter Capacity 300 Sight Range 16 Terrain Scan Density 10 Armor Coverage 80 Evasion (%) 55 Item Schematics ----------------- None Robot Schematics ------------------ None Fabricated ------------ Nothing Alien Tech Used ----------------- None Achievements -------------- Use The Force Challenges ------------ None Game ------ Seed CobblerDiametricDetonator Manual? 0 Play Time 00:15:24 Cumulative 10.8 hours Start 2024.08.05 @ 16:25:14 End 2024.08.05 @ 16:41:17 Sessions 1 Manual Loads 0 Difficulty Rogue Special Mode None Game No. 26 Rogue 26 Adventurer 0 Explorer 0 Win Type - Total 0 Types 0/0/0/0/0/0/0/0/0 Lore% 15 Gallery% 19 Achievement% 14 Wizard Run 0 Options --------- Layout 1 ASCII 0 Keyboard 0 Movement Mouse Keybinds 0 Fullscreen 1 Font 24/Smallcaps Map View 50x35 Zoom Use 0% Tactical HUD 1 Map Filters NONE Filters NONE Steam 1 RUN: cfdf9e48-3bc4-44ff-a5e1-5c358ed07209